bitfinex/quotes_BTCUSD_20250422
["timestamp","ask_amount","ask_price","bid_price","bid_amount"]
[1745307711195,0.21212826,88309.0,88308.0,0.01060249]
[1745307711637,0.21012826,88309.0,88308.0,0.01060249]
[1745307711837,0.01132425,88306.0,88299.0,0.45914349]
[1745307712039,0.045,88304.0,88302.0,0.22649478]
[1745307712237,0.11375594,88303.0,88302.0,0.22649478]
[1745307712481,0.11375594,88303.0,88302.0,0.23709727]
[1745307713554,0.11375594,88303.0,88302.0,0.01060249]
[1745307713751,0.15875594,88303.0,88302.0,0.01060249]
[1745307714215,0.16075594,88303.0,88302.0,0.01060249]
[1745307714584,0.16275594,88303.0,88302.0,0.01060249]
[1745307717645,0.16275594,88303.0,88302.0,0.23709792]
[1745307722037,0.16275594,88303.0,88302.0,0.01060249]
[1745307722038,0.38924881,88303.0,88302.0,0.01060249]
[1745307722243,0.16275594,88303.0,88302.0,0.01060249]
[1745307722447,0.0483,88291.0,88272.0,0.03506982]
[1745307722647,0.11375594,88290.0,88289.0,0.22652878]
[1745307724047,0.0483,88297.0,88294.0,0.01132579]
[1745307724263,0.11375594,88296.0,88295.0,0.22651339]
[1745307726754,0.11575594,88296.0,88295.0,0.22751339]
[1745307730643,0.01575594,88296.0,88295.0,0.22751339]
[1745307731068,0.01575594,88296.0,88295.0,0.23837411]
[1745307731751,0.24226676,88296.0,88295.0,0.01186072]
[1745307731952,0.33506676,88296.0,88295.0,0.001]
[1745307732287,0.33506676,88296.0,88266.0,0.22743277]
[1745307732288,0.22656984,88273.0,88266.0,0.22743277]
[1745307732407,0.84062578,88273.0,88268.0,0.22658035]
[1745307732608,0.61405594,88273.0,88272.0,0.01170592]
[1745307732808,0.61405594,88273.0,88272.0,0.0008452]
[1745307733478,0.62361201,88273.0,88272.0,0.0008452]
[1745307733724,0.62361201,88273.0,88272.0,0.01180948]
[1745307733929,0.64476124,88273.0,88272.0,0.01280948]
[1745307734400,0.64476124,88273.0,88272.0,0.01180948]
[1745307734801,0.64476124,88273.0,88272.0,0.00090719]
[1745307735007,0.64576124,88273.0,88272.0,0.00090719]
[1745307735220,0.64776124,88273.0,88272.0,0.00090719]
[1745307735640,0.62661201,88273.0,88272.0,0.2274796]
[1745307735847,0.62661201,88273.0,88272.0,0.23838189]
[1745307736057,0.52661201,88273.0,88272.0,0.23838189]
[1745307736464,0.52661201,88273.0,88272.0,0.01180948]
[1745307738394,0.51605594,88273.0,88272.0,0.01180948]
[1745307744702,0.51605594,88273.0,88272.0,0.01180948]
[1745307747437,0.78912578,88273.0,88272.0,0.01180948]
[1745307747644,0.95493434,88273.0,88272.0,0.01180948]
[1745307747854,0.95493434,88273.0,88272.0,0.00090719]
[1745307747855,0.87110077,88273.0,88272.0,0.00090719]
[1745307748069,0.87110077,88273.0,88266.0,0.0008452]
[1745307748070,0.33392609,88267.0,88266.0,0.0008452]
[1745307748252,0.57248203,88267.0,88266.0,0.0008452]
[1745307748503,0.60472264,88267.0,88266.0,0.0008452]
[1745307748685,0.60054057,88267.0,88266.0,0.0008452]
[1745307749112,0.59954057,88267.0,88266.0,0.0008452]
[1745307749440,0.61010448,88267.0,88266.0,0.0008452]
[1745307750600,0.61310448,88267.0,88266.0,0.0008452]
[1745307751023,0.61610448,88267.0,88266.0,0.0008452]
[1745307751536,0.61910448,88267.0,88266.0,0.0018452]
[1745307752376,0.61909528,88267.0,88266.0,0.0018452]
[1745307752740,1.01839528,88267.0,88266.0,0.0018452]
[1745307753930,1.01839528,88267.0,88266.0,0.01343542]
[1745307754301,0.79381004,88267.0,88266.0,0.01343542]
[1745307754676,0.79381004,88267.0,88266.0,0.0018452]
[1745307755085,0.7647607,88267.0,88266.0,0.0018452]
[1745307755942,0.75021985,88267.0,88266.0,0.0018452]
[1745307756661,0.65741985,88267.0,88266.0,0.0018452]
[1745307756810,0.65741985,88267.0,88266.0,0.01343542]
[1745307757085,0.64685594,88267.0,88266.0,0.01343542]
[1745307760458,0.63785594,88267.0,88266.0,0.01243542]
[1745307760661,0.64285594,88267.0,88266.0,0.01343542]
[1745307763030,0.64285594,88267.0,88264.0,0.01132964]
[1745307763031,0.64285594,88267.0,88264.0,0.22658993]
[1745307763227,0.5291,88267.0,88266.0,0.00966274]
[1745307763429,0.64285594,88267.0,88265.0,0.22658956]
[1745307763634,0.5291,88267.0,88266.0,0.23625055]
[1745307763835,0.63985594,88267.0,88266.0,0.23625055]
[1745307764264,0.64285594,88267.0,88266.0,0.23625055]
[1745307764828,0.63985594,88267.0,88266.0,0.23625055]
[1745307765018,0.64285594,88267.0,88266.0,0.23725055]
[1745307765151,0.64085594,88267.0,88266.0,0.23725055]
[1745307765971,0.64285594,88267.0,88266.0,0.23725055]
[1745307766590,0.64485594,88267.0,88266.0,0.23825055]
[1745307767458,0.5311,88267.0,88266.0,0.23825055]
[1745307767667,0.4063,88267.0,88266.0,0.23825055]
[1745307767870,0.007,88267.0,88266.0,0.57825055]
[1745307768416,0.003,88267.0,88266.0,0.57725055]
[1745307768623,0.005,88267.0,88266.0,0.57825055]
[1745307768834,0.003,88267.0,88266.0,0.57725055]
[1745307769219,9.808e-05,88273.0,88272.0,0.22657241]
[1745307769436,0.11385402,88273.0,88272.0,0.22657241]
[1745307769647,0.11385402,88273.0,88272.0,0.23611975]
[1745307771034,0.11685402,88273.0,88272.0,0.23711975]
[1745307771259,0.11685402,88273.0,88272.0,0.23811975]
[1745307771394,0.11885402,88273.0,88272.0,0.23811975]
[1745307782308,0.00509808,88273.0,88272.0,0.62361975]
[1745307782519,0.00509808,88273.0,88272.0,0.67281975]
[1745307783387,0.00209808,88273.0,88272.0,0.67181975]
[1745307783565,0.00409808,88273.0,88272.0,0.78657569]
[1745307783776,0.00409808,88273.0,88272.0,0.82080031]
[1745307784011,0.00409808,88273.0,88272.0,0.78657569]
[1745307784217,0.3993,88302.0,88301.0,0.226498]
[1745307784612,0.3993,88302.0,88301.0,0.57590127]
[1745307785742,0.4023,88302.0,88301.0,0.57690127]
[1745307789184,0.4063,88302.0,88301.0,0.35140327]
[1745307793848,0.4063,88302.0,88301.0,0.57790127]
[1745307799707,0.007,88302.0,88301.0,0.57790127]
[1745307806212,0.007,88302.0,88301.0,0.57690127]
[1745307806213,0.003,88302.0,88301.0,0.57690127]
[1745307806624,0.006,88302.0,88301.0,0.57690127]
[1745307807368,0.003,88302.0,88301.0,0.57590127]
[1745307807506,0.005,88302.0,88301.0,0.57590127]
[1745307815347,0.0004228,88303.0,88302.0,0.34]
[1745307815545,0.0004228,88303.0,88302.0,0.34887852]
[1745307815972,0.3939688,88315.0,88314.0,0.22646466]
[1745307816513,0.39408765,88315.0,88314.0,0.23534318]
[1745307817309,0.00011885,88315.0,88314.0,0.23534318]
[1745307817921,0.00311885,88315.0,88314.0,0.23634318]
[1745307818667,0.00611885,88315.0,88314.0,0.23734318]
[1745307821304,0.05151885,88315.0,88314.0,0.01087852]
[1745307824631,0.05151885,88315.0,88314.0,0.07781971]
[1745307824827,0.05151885,88315.0,88314.0,0.08514589]
[1745307827653,0.05151885,88315.0,88314.0,0.23379084]
[1745307830152,0.00611885,88315.0,88314.0,0.23379084]
[1745307832644,0.00611885,88315.0,88314.0,0.57605539]
[1745307832848,0.00611885,88315.0,88314.0,0.57379084]
[1745307833934,0.00311885,88315.0,88314.0,0.57379084]
[1745307834895,0.00511885,88315.0,88314.0,0.57379084]
[1745307837638,0.00511885,88315.0,88314.0,0.73444678]
[1745307838386,1e-08,88321.0,88320.0,0.61234927]
[1745307838505,1e-08,88321.0,88320.0,0.72610521]
[1745307838706,1e-08,88321.0,88320.0,0.7332017]
[1745307840579,0.00200001,88321.0,88320.0,0.7332017]
[1745307840774,0.00400001,88321.0,88320.0,0.7332017]
[1745307844503,0.00400001,88321.0,88320.0,0.61944576]
[1745307845875,0.00400001,88321.0,88320.0,0.57354576]
[1745307873614,0.0008,88324.0,88323.0,0.22644158]
[1745307873791,0.01578949,88333.0,88328.0,0.56642876]
[1745307874164,0.01578949,88333.0,88328.0,0.57218458]
[1745307876322,0.0018452,88329.0,88328.0,0.57218458]
[1745307878768,0.01063469,88333.0,88332.0,0.56641851]
[1745307879547,0.01063469,88333.0,88332.0,0.68575796]
[1745307880224,0.01163469,88333.0,88332.0,0.68575796]
[1745307880589,0.0004,88339.0,88333.0,0.22641594]
[1745307880828,0.0004,88339.0,88333.0,0.68243542]
[1745307881009,0.0004,88339.0,88333.0,0.68017188]
[1745307881420,0.0004,88339.0,88333.0,0.68575539]
[1745307883328,0.0004,88339.0,88337.0,0.22640569]
[1745307883535,0.0004,88339.0,88338.0,0.00773788]
[1745307883811,0.0004,88339.0,88338.0,0.12149382]
[1745307885110,0.0004227,88345.0,88343.0,0.22639031]
[1745307885312,0.00087899,88344.0,88343.0,0.23409553]
[1745307885480,0.00087899,88344.0,88343.0,0.57409553]
[1745307885703,0.00087899,88344.0,88343.0,0.57183205]
[1745307890126,0.0004226,88357.0,88356.0,0.22635701]
[1745307890328,0.00055934,88357.0,88356.0,0.23133087]
[1745307891161,0.00055934,88357.0,88356.0,0.00497386]
[1745307891339,0.00055934,88357.0,88356.0,0.23133087]
[1745307891724,0.00155934,88357.0,88356.0,0.23133087]
[1745307891921,0.00055934,88357.0,88356.0,0.23133087]
[1745307892354,0.00155934,88357.0,88356.0,0.24496759]
[1745307892566,0.00155934,88357.0,88356.0,0.24270429]
[1745307897184,0.00155934,88357.0,88356.0,0.58270429]
[1745307898641,0.00055934,88357.0,88356.0,0.58270429]
[1745307900721,0.32261378,88357.0,88356.0,0.01634728]
[1745307900923,0.43736972,88357.0,88341.0,0.4167]
[1745307901157,0.01131977,88341.0,88331.0,0.01132105]
[1745307901352,0.0403,88348.0,88343.0,0.01131951]
[1745307901528,0.0403,88348.0,88347.0,0.22638006]
[1745307903294,0.0423,88348.0,88347.0,0.22638006]
[1745307904129,0.003,88348.0,88347.0,0.2286437]
[1745307904335,0.003,88348.0,88347.0,0.57570931]
[1745307904527,0.003,88348.0,88347.0,0.57344577]
[1745307904973,0.00155934,88357.0,88356.0,0.22635701]
[1745307905180,0.00155934,88357.0,88356.0,0.22862023]
[1745307905579,0.00155934,88357.0,88356.0,0.22635701]
[1745307905756,0.00155934,88357.0,88356.0,0.23342272]
[1745307906669,0.00155934,88357.0,88356.0,0.22635701]
[1745307907206,0.00155934,88357.0,88356.0,0.22735701]
[1745307908102,1e-08,88357.0,88356.0,0.68437597]
[1745307908411,1e-08,88357.0,88356.0,0.68211293]
[1745307909005,1e-08,88357.0,88356.0,0.56835699]
[1745307909171,0.04312261,88378.0,88377.0,0.22630322]
[1745307911059,0.04512261,88378.0,88377.0,0.22630322]
[1745307913039,0.04512261,88378.0,88377.0,0.23744805]
[1745307913625,0.0459,88369.0,88362.0,0.01131708]
[1745307913831,0.0459,88369.0,88368.0,0.22632627]
[1745307914939,0.3698902,88375.0,88374.0,0.2263109]
[1745307915117,0.48364614,88375.0,88374.0,0.2263109]
[1745307916098,0.01131554,88374.0,88368.0,0.01132488]
[1745307916352,0.11375594,88373.0,88371.0,0.22631733]
[1745307916546,0.11375594,88373.0,88372.0,0.22631602]
[1745307917940,0.16065594,88373.0,88372.0,0.22631602]
[1745307919400,0.16165594,88373.0,88372.0,0.22631602]
[1745307923202,0.17297161,88373.0,88359.0,0.01131746]
[1745307923439,0.23763182,88372.0,88367.0,0.22632657]
[1745307923657,0.11375594,88371.0,88368.0,0.22632622]
[1745307923945,0.34007555,88371.0,88368.0,0.22632622]
[1745307924157,0.01131605,88370.0,88368.0,0.22632558]
[1745307924294,0.11375594,88369.0,88368.0,0.22632558]
[1745307927574,0.11475594,88369.0,88368.0,0.22632558]
[1745307931558,0.11475594,88369.0,88368.0,0.23785242]
[1745307933093,0.11475594,88369.0,88368.0,0.23885241]
[1745307935249,0.001,88369.0,88368.0,0.23885241]
[1745307935452,0.001,88369.0,88368.0,0.57885241]
[1745307939068,0.001,88369.0,88368.0,0.62585241]
[1745307940064,0.3698902,88375.0,88374.0,0.2263109]
[1745307940262,0.0004226,88380.0,88379.0,0.2262981]
[1745307940889,0.0004226,88380.0,88379.0,0.23769474]
[1745307941800,0.0014226,88380.0,88379.0,0.23769474]
[1745307942189,0.0014226,88380.0,88379.0,0.23869473]
[1745307943075,0.0024226,88380.0,88379.0,0.23869473]
[1745307943494,0.0024226,88380.0,88379.0,0.57869473]
[1745307944169,0.0014226,88380.0,88379.0,0.57869473]
[1745307944513,0.0004226,88380.0,88379.0,0.57869473]
[1745307947559,0.0012225,88384.0,88383.0,0.56628786]
[1745307947560,0.00064511,88384.0,88383.0,0.56628786]
[1745307947735,0.0007818,88384.0,88383.0,0.62549254]
[1745307949076,0.0007818,88384.0,88383.0,0.62649254]
[1745307950117,0.0007818,88384.0,88383.0,0.62749254]
[1745307953120,2.72e-05,88399.0,88398.0,0.22624946]
[1745307953524,2.72e-05,88399.0,88398.0,0.23737226]
[1745307954488,0.0010272,88399.0,88398.0,0.23737226]
[1745307955388,0.0020272,88399.0,88398.0,0.23737226]
[1745307959508,0.0020272,88399.0,88398.0,0.24786166]
[1745307959714,0.0020272,88399.0,88398.0,0.0216122]
[1745307962634,0.0020272,88399.0,88398.0,0.0111228]
[1745307963542,0.0020272,88399.0,88398.0,0.23737226]
[1745307966005,0.16238314,88399.0,88398.0,0.0111228]
[1745307966210,0.01131336,88391.0,88385.0,0.01131413]
[1745307966408,0.01131349,88390.0,88386.0,0.0111228]
[1745307966671,0.01131311,88393.0,88389.0,0.01131362]
[1745307966901,0.22625404,88397.0,88391.0,0.01131336]
[1745307967074,0.3400054,88398.0,88391.0,0.01131336]
[1745307967075,0.11375594,88396.0,88395.0,0.22625714]
[1745307967389,0.11375594,88396.0,88394.0,0.2262597]
[1745307967577,0.3699174,88399.0,88398.0,0.22624946]
[1745307967791,0.48367334,88399.0,88398.0,0.22624946]
[1745307967983,0.48367334,88399.0,88398.0,0.23739419]
[1745307970997,0.11375594,88394.0,88392.0,0.23508336]
[1745307971504,0.11475594,88394.0,88392.0,0.23508336]
[1745307971726,0.11375594,88394.0,88392.0,0.23508336]
[1745307972131,0.11475594,88394.0,88392.0,0.23508336]
[1745307972497,0.11575594,88394.0,88392.0,0.23508336]
[1745307972731,0.10331323,88394.0,88392.0,0.23508336]
[1745307974354,0.32196226,88393.0,88392.0,0.00881897]
[1745307974560,0.01131336,88391.0,88386.0,0.22627981]
[1745307974777,0.23758769,88389.0,88387.0,0.00737481]
[1745307974897,0.11375594,88389.0,88387.0,0.01131388]
[1745307975110,0.11375594,88389.0,88388.0,0.00737481]
[1745307975324,0.11375594,88389.0,88388.0,0.22627429]
[1745307975525,0.11375594,88389.0,88388.0,0.2336491]
[1745307977336,0.38852843,88389.0,88388.0,0.00737481]
[1745307977573,0.22629407,88381.0,88379.0,0.00199999]
[1745307977766,0.11375594,88381.0,88379.0,0.00199999]
[1745307978371,0.3400503,88381.0,88379.0,0.00199999]
[1745307978712,0.22629554,88380.0,88379.0,0.00199999]
[1745307979101,0.22629554,88380.0,88379.0,0.00299999]
[1745307979287,0.11375594,88381.0,88379.0,0.00299999]
[1745307979446,0.11375594,88381.0,88379.0,0.22929578]
[1745307980685,0.11375594,88381.0,88379.0,0.00299999]
[1745307980855,0.11375594,88381.0,88379.0,0.00199999]
[1745307980856,0.22629554,88380.0,88379.0,0.00199999]
[1745307981414,0.80094168,88380.0,88379.0,0.00199999]
[1745307982642,0.57464614,88380.0,88379.0,0.22829809]
[1745307982849,0.48464614,88380.0,88379.0,0.22829809]
[1745307982985,0.48364614,88380.0,88379.0,0.23579173]
[1745307983395,0.48464614,88380.0,88379.0,0.23579173]
[1745307984059,0.48664614,88380.0,88379.0,0.23579173]
[1745307984257,0.48664614,88380.0,88379.0,0.00949363]
[1745307986185,0.48564614,88380.0,88379.0,0.00949363]
[1745307986678,0.48464614,88380.0,88379.0,0.00949363]
[1745307986995,0.48564614,88380.0,88379.0,0.00949363]
[1745307988594,0.53214614,88380.0,88379.0,0.00949363]
[1745307988799,0.53214614,88380.0,88379.0,0.00199999]
[1745307990768,0.53214614,88380.0,88379.0,0.00766343]
[1745307990769,0.66043904,88380.0,88379.0,0.00766343]
[1745307990974,0.01131669,88365.0,88358.0,0.22635163]
[1745307991180,0.22633907,88363.0,88362.0,0.00098209]
[1745307991412,0.11375594,88363.0,88362.0,0.22732373]
[1745307992625,0.11475594,88363.0,88362.0,0.22732373]
[1745307993861,0.11575594,88363.0,88362.0,0.22732373]
[1745307995941,0.34209501,88363.0,88362.0,0.00098209]
[1745307996214,0.71198521,88363.0,88362.0,0.00098209]
[1745307996633,0.48564614,88363.0,88362.0,0.22732373]
[1745307997338,0.48564614,88363.0,88362.0,0.00098209]
[1745307998423,0.48564614,88363.0,88362.0,0.22732373]
[1745307998624,0.48564614,88363.0,88362.0,0.04957543]
[1745307998822,0.01131708,88362.0,88359.0,0.22634878]
[1745307999043,0.11375594,88361.0,88359.0,0.22634878]
[1745308000261,0.11375594,88361.0,88360.0,0.22634546]
[1745308000868,0.11375594,88361.0,88356.0,0.0008454]
[1745308001079,0.11375594,88361.0,88360.0,0.23290161]
[1745308001284,0.11375594,88361.0,88360.0,0.22634676]
[1745308001490,0.11375594,88361.0,88360.0,0.23290161]
[1745308002910,0.11475594,88361.0,88360.0,0.23290161]
[1745308003088,0.11475594,88361.0,88360.0,0.00655485]
[1745308003790,0.11475594,88361.0,88360.0,0.00660387]
[1745308010495,0.001,88361.0,88360.0,0.00660387]
[1745308013564,0.43480014,88361.0,88360.0,0.00660387]
[1745308013809,0.22635444,88357.0,88356.0,0.0008454]
[1745308014016,0.11375594,88357.0,88356.0,0.0008454]
[1745308014254,0.11375594,88357.0,88356.0,0.23376129]
[1745308015413,0.11375594,88357.0,88356.0,0.23476129]
[1745308017416,0.3698902,88361.0,88360.0,0.22634676]
[1745308017642,0.3698902,88361.0,88360.0,0.23297305]
[1745308018296,0.3698902,88370.0,88369.0,0.22632371]
[1745308018519,0.48364614,88370.0,88369.0,0.22632371]
[1745308018724,0.48364614,88370.0,88369.0,0.2329096]
[1745308020584,0.48464614,88370.0,88369.0,0.2329096]
[1745308021190,0.48664614,88370.0,88369.0,0.2329096]
[1745308021836,0.48664614,88370.0,88369.0,0.00658589]
[1745308022362,0.48664614,88370.0,88369.0,0.2329096]
[1745308023509,0.48664614,88370.0,88369.0,0.24345596]
[1745308025127,0.48464614,88370.0,88369.0,0.24345596]
[1745308025451,0.48564614,88370.0,88369.0,0.24345596]
[1745308026720,0.48464614,88370.0,88369.0,0.24345596]
[1745308028249,0.48464614,88370.0,88369.0,0.2329096]
[1745308028634,0.48464614,88370.0,88369.0,0.24345303]
[1745308030522,0.48464614,88370.0,88369.0,0.24345388]
[1745308033379,0.48464614,88370.0,88369.0,0.6210096]
[1745308033589,0.3708902,88370.0,88369.0,0.6210096]
[1745308034230,0.36523889,88370.0,88369.0,0.63154953]
[1745308034543,0.36423889,88370.0,88369.0,0.63154953]
[1745308035332,0.36423889,88393.0,88392.0,0.22626482]
[1745308035655,0.47810308,88393.0,88392.0,0.23263201]
[1745308036073,0.47810308,88393.0,88392.0,0.24382633]
[1745308036926,0.48010308,88393.0,88392.0,0.25436626]
[1745308037477,0.48210308,88393.0,88392.0,0.25436626]
[1745308038615,0.70836534,88393.0,88392.0,0.01690712]
[1745308038778,0.48210308,88393.0,88392.0,0.01053993]
[1745308039356,0.01131336,88391.0,88389.0,0.22627233]
[1745308039614,0.36834714,88393.0,88391.0,0.22626729]
[1745308039812,0.11375594,88392.0,88391.0,0.22626729]
[1745308040016,0.11375594,88392.0,88391.0,0.24314291]
[1745308040360,0.47799483,88392.0,88391.0,0.24314291]
[1745308040893,0.47999483,88392.0,88391.0,0.24314291]
[1745308041601,0.48199483,88392.0,88391.0,0.01687562]
[1745308041959,0.48199483,88392.0,88391.0,0.02475471]
[1745308042181,0.47999483,88392.0,88391.0,0.02475471]
[1745308042395,0.48099483,88392.0,88391.0,0.02475471]
[1745308043399,0.48199483,88392.0,88391.0,0.02475471]
[1745308044739,0.48199483,88392.0,88391.0,0.01687562]
[1745308045331,0.48199483,88392.0,88391.0,0.00636719]
[1745308045980,0.48199483,88392.0,88391.0,0.005306]
[1745308046203,0.48199483,88392.0,88391.0,0.01580869]
[1745308050797,0.80365965,88392.0,88391.0,0.01580869]
[1745308050999,0.80365965,88392.0,88391.0,0.01050269]
[1745308051204,0.011314,88386.0,88382.0,0.22628944]
[1745308051406,0.12507007,88385.0,88381.0,0.01135849]
[1745308051712,0.12507007,88385.0,88382.0,0.00530438]
[1745308051853,0.36423889,88384.0,88382.0,0.2315945]
[1745308052055,0.11375594,88383.0,88382.0,0.2315945]
[1745308052470,0.11375594,88383.0,88382.0,0.00530438]
[1745308052873,0.22629042,88382.0,88381.0,0.01113087]
[1745308053072,0.34004636,88382.0,88381.0,0.00530438]
[1745308053454,0.35136088,88382.0,88381.0,0.00530438]
[1745308053658,0.35136088,88382.0,88379.0,0.22629681]
[1745308053865,0.11375594,88381.0,88380.0,0.23159966]
[1745308054274,0.11375594,88381.0,88380.0,0.00530438]
[1745308054905,0.66966002,88381.0,88380.0,0.00530438]
[1745308055323,0.22631346,88373.0,88372.0,0.01152676]
[1745308055501,0.70430829,88373.0,88372.0,0.01152676]
[1745308055732,0.01131592,88371.0,88366.0,0.22632906]
[1745308055937,0.01131695,88363.0,88356.0,0.0008454]
[1745308056142,0.01131708,88362.0,88356.0,0.0008454]
[1745308056365,0.01131708,88362.0,88357.0,0.22635444]
[1745308056545,0.23766582,88360.0,88356.0,0.01230081]
[1745308056766,0.11375594,88359.0,88356.0,0.01230081]
[1745308056977,0.11375594,88359.0,88357.0,0.22635444]
[1745308057100,0.11375594,88359.0,88356.0,0.01230081]
[1745308057486,0.11375594,88359.0,88357.0,0.22635444]
[1745308057692,0.11375594,88359.0,88357.0,0.22735444]
[1745308059042,0.11375594,88359.0,88357.0,0.22635444]
[1745308059691,0.11375594,88359.0,88356.0,0.22720059]
[1745308060315,0.1250734,88359.0,88356.0,0.0008454]
[1745308060675,0.48931229,88359.0,88356.0,0.0008454]
[1745308060877,0.71566381,88359.0,88357.0,0.00535109]
[1745308061090,0.71566381,88359.0,88356.0,0.0008454]
[1745308061287,0.22635444,88357.0,88356.0,0.0008454]
[1745308061588,0.34011038,88357.0,88356.0,0.0008454]
[1745308062047,0.34011038,88357.0,88356.0,0.0018454]
[1745308062411,0.34011038,88357.0,88356.0,0.0008454]
[1745308062612,0.11375594,88357.0,88356.0,0.0008454]
[1745308062847,0.11375594,88357.0,88356.0,0.22720241]
[1745308063199,0.11475594,88357.0,88356.0,0.22720241]
[1745308063816,0.11575594,88357.0,88356.0,0.22720241]
[1745308064814,0.11375594,88357.0,88356.0,0.22720241]
[1745308076016,0.11375594,88357.0,88356.0,0.23291866]
[1745308078437,0.34011038,88357.0,88356.0,0.00656165]
[1745308078789,0.34011038,88357.0,88356.0,0.0008454]
[1745308079744,0.38591038,88357.0,88356.0,0.0008454]
[1745308080489,0.11375594,88357.0,88356.0,0.00661206]
[1745308080692,0.34011038,88357.0,88356.0,0.00661206]
[1745308080893,0.34011038,88357.0,88356.0,0.0008454]
[1745308081503,0.34311038,88357.0,88356.0,0.0008454]
[1745308082553,0.34311038,88357.0,88356.0,0.0066106]
[1745308082758,0.34311038,88357.0,88356.0,0.0008454]
[1745308084066,0.39151038,88357.0,88356.0,0.0008454]
[1745308084268,0.75574927,88357.0,88356.0,0.0008454]
[1745308085316,0.77691535,88357.0,88356.0,0.0008454]
[1745308086731,0.72851535,88357.0,88356.0,0.0008454]
[1745308086935,0.48099483,88357.0,88356.0,0.0008454]
[1745308087579,0.48099483,88357.0,88356.0,0.00675378]
[1745308088133,0.47999483,88357.0,88356.0,0.00675378]
[1745308088324,0.47799483,88357.0,88356.0,0.00675378]
[1745308091905,0.36423889,88357.0,88356.0,0.00675378]
[1745308093746,0.47799483,88357.0,88356.0,0.00675378]
[1745308095121,0.47799483,88357.0,88356.0,0.23311079]
[1745308099588,0.36423889,88357.0,88356.0,0.23311079]
[1745308099986,0.36363889,88357.0,88356.0,0.23311079]
[1745308101875,0.12564,88363.0,88362.0,0.22634164]
[1745308102075,0.23939594,88363.0,88362.0,0.22634164]
[1745308102273,0.23939594,88363.0,88362.0,0.23219243]
[1745308103219,0.24039594,88363.0,88362.0,0.23219243]
[1745308103566,0.24139594,88363.0,88362.0,0.23219243]
[1745308106268,0.24139594,88363.0,88362.0,0.00585079]
[1745308106614,0.01131746,88359.0,88356.0,0.0008454]
[1745308106850,0.22635234,88358.0,88356.0,0.0008454]
[1745308107042,0.23766975,88359.0,88356.0,0.22720092]
[1745308107246,0.23766975,88359.0,88356.0,0.0008454]
[1745308107247,0.11375594,88357.0,88356.0,0.0008454]
[1745308108039,0.12507366,88357.0,88349.0,0.22111459]
[1745308108242,0.12507366,88357.0,88353.0,0.22636392]
[1745308108462,0.35142836,88357.0,88353.0,0.22636392]
[1745308108667,0.12507366,88357.0,88354.0,0.22636184]
[1745308110077,0.22635957,88355.0,88354.0,0.001]
[1745308110314,0.11375594,88355.0,88354.0,0.001]
[1745308112043,0.11375594,88355.0,88353.0,0.22636469]
[1745308112240,0.11375594,88354.0,88353.0,0.22636469]
[1745308112419,0.11275594,88354.0,88353.0,0.22636469]
[1745308113471,0.11275594,88354.0,88353.0,0.22736469]
[1745308114233,0.11275594,88354.0,88353.0,0.00100285]
[1745308114798,0.36363889,88360.0,88359.0,0.22634932]
[1745308114945,0.47739483,88360.0,88359.0,0.22634932]
[1745308115157,0.47739483,88360.0,88359.0,0.0105258]
[1745308115991,0.47839483,88360.0,88359.0,0.0105258]
[1745308116553,0.47939483,88360.0,88359.0,0.0105258]
[1745308117481,0.47939483,88360.0,88359.0,0.01842288]
[1745308118592,0.36563889,88360.0,88359.0,0.01842288]
[1745308119201,0.47939483,88360.0,88359.0,0.01842288]
[1745308120077,0.47939483,88360.0,88359.0,0.2447722]
[1745308121059,0.47939483,88360.0,88359.0,0.25062081]
[1745308121829,0.47939483,88360.0,88359.0,0.01637441]
[1745308125429,0.70574159,88360.0,88359.0,0.01637441]
[1745308125843,0.47939483,88360.0,88359.0,0.0105258]
[1745308126166,0.47939483,88360.0,88359.0,0.0163928]
[1745308127229,0.47939483,88360.0,88359.0,0.02428876]
[1745308136785,0.47939483,88360.0,88359.0,0.25063808]
[1745308138164,0.47939483,88360.0,88359.0,0.24274212]
[1745308141233,0.47939483,88360.0,88359.0,0.25063955]
[1745308141616,0.36563889,88360.0,88359.0,0.25063955]
[1745308142848,0.80154159,88360.0,88359.0,0.02429023]
[1745308143230,0.80154159,88360.0,88359.0,0.01842323]
[1745308143648,0.80054159,88360.0,88359.0,0.01842323]
[1745308145963,0.80054159,88360.0,88359.0,0.0105258]
[1745308146163,0.80154159,88360.0,88359.0,0.0105258]
[1745308147182,0.80254159,88360.0,88359.0,0.0105258]
[1745308147695,0.80154159,88360.0,88359.0,0.0105258]
[1745308148108,0.80254159,88360.0,88359.0,0.0105258]
[1745308149072,0.22636213,88354.0,88353.0,2.85e-06]
[1745308149269,0.34011807,88354.0,88353.0,2.85e-06]
[1745308150261,0.34211807,88354.0,88353.0,2.85e-06]
[1745308151597,0.34211807,88354.0,88353.0,0.01053907]
[1745308152618,0.2409286,88344.0,88343.0,0.0008446]
[1745308152821,0.93824436,88344.0,88343.0,0.0008446]
[1745308154562,0.94024436,88344.0,88343.0,0.0008446]
[1745308155225,0.94889036,88344.0,88343.0,0.0008446]
[1745308155995,0.94989036,88344.0,88343.0,0.0008446]
[1745308158991,0.90029036,88344.0,88343.0,0.0008446]
[1745308160884,1.06364241,88344.0,88343.0,0.0008446]
[1745308161610,0.94989036,88344.0,88343.0,0.0008446]
[1745308166671,0.93534951,88344.0,88343.0,0.0008446]
[1745308166897,0.88574951,88344.0,88343.0,0.0008446]
[1745308168610,0.83904951,88344.0,88343.0,0.0008446]
[1745308173272,0.86017051,88344.0,88343.0,0.0008446]
[1745308174114,0.83904951,88344.0,88343.0,0.0008446]
[1745308174899,0.86017833,88344.0,88343.0,0.0008446]
[1745308181128,0.92423984,88344.0,88343.0,0.0008446]
[1745308181488,0.86017833,88344.0,88343.0,0.0008446]
[1745308181957,0.87471918,88344.0,88343.0,0.0008446]
[1745308182693,0.92141918,88344.0,88343.0,0.0008446]
[1745308182894,0.97091918,88344.0,88343.0,0.0008446]
[1745308186189,1.00266681,88344.0,88343.0,0.0008446]
[1745308186395,0.97091918,88344.0,88343.0,0.0008446]
[1745308186600,1.00266676,88344.0,88343.0,0.0008446]
[1745308186979,1.04204332,88344.0,88343.0,0.0008446]
[1745308187414,1.00266676,88344.0,88343.0,0.0008446]
[1745308192334,1.00266676,88344.0,88321.0,0.22644633]
[1745308192335,0.01132207,88323.0,88321.0,0.22644633]
[1745308192479,0.11375594,88322.0,88320.0,0.22935506]
[1745308192675,0.11375594,88322.0,88321.0,0.22644671]
[1745308193637,0.34024557,88322.0,88321.0,0.01124297]
[1745308193840,0.22644671,88321.0,88320.0,0.001]
[1745308194051,0.22645183,88319.0,88318.0,0.0008456]
[1745308194252,0.33820777,88319.0,88318.0,0.0008456]
[1745308194609,0.11375594,88319.0,88318.0,0.0008456]
[1745308194928,0.11375594,88319.0,88318.0,0.2273]
[1745308195111,0.11275594,88319.0,88318.0,0.0008456]
[1745308195506,0.11275594,88319.0,88318.0,0.01217924]
[1745308195918,0.11275594,88319.0,88318.0,0.01417924]
[1745308196088,0.33920777,88319.0,88318.0,0.01963899]
[1745308196291,0.11275594,88319.0,88318.0,0.01963899]
[1745308196751,0.11275594,88319.0,88318.0,0.24609339]